[Event "Titled Tuesday Blitz April 25 Early 2023"]
[White "Rios Escobar, Adan"]
[Black "Timofeev, Artyom"]
[WhiteFideId "3403645"]
[BlackFideId "4140419"]
[WhiteElo "2486"]
[BlackElo "2586"]
[Result "0-1"]
[Round "02"]
[TimeControl "180+2"]
[Date "2023.04.25"]
[WhiteClock "0:00:02"]
[BlackClock "0:01:12"]

1. d4 {[%clk 0:03:00]}  d5 {[%clk 0:02:58]} 2. g3 {[%clk 0:03:00]}  c5 {[%clk 0:02:57]} 3. Nf3 {[%clk 0:02:56]}  cxd4 {[%clk 0:02:56]} 4. Bg2 {[%clk 0:02:54]}  Nf6 {[%clk 0:02:52]} 5. O-O {[%clk 0:02:53]}  g6 {[%clk 0:02:52]} 6. b3 {[%clk 0:02:34]}  Bg7 {[%clk 0:02:50]} 7. Bb2 {[%clk 0:02:35]}  O-O {[%clk 0:02:49]} 8. Qc1 {[%clk 0:02:25]}  Bg4 {[%clk 0:02:41]} 9. Nxd4 {[%clk 0:02:15]}  e5 {[%clk 0:02:40]} 10. Nf3 {[%clk 0:02:14]}  e4 {[%clk 0:02:40]} 11. Nd4 {[%clk 0:02:14]}  Nc6 {[%clk 0:02:39]} 12. e3 {[%clk 0:01:59]}  Qc8 {[%clk 0:02:35]} 13. Nxc6 {[%clk 0:01:45]}  bxc6 {[%clk 0:02:31]} 14. Nc3 {[%clk 0:01:45]}  Bh3 {[%clk 0:02:28]} 15. Qd1 {[%clk 0:01:34]}  h5 {[%clk 0:02:26]} 16. Ne2 {[%clk 0:01:33]}  Bxg2 {[%clk 0:02:23]} 17. Kxg2 {[%clk 0:01:33]}  h4 {[%clk 0:02:23]} 18. Nf4 {[%clk 0:01:31]}  g5 {[%clk 0:02:16]} 19. Nh3 {[%clk 0:01:16]}  Qf5 {[%clk 0:02:10]} 20. Rb1 {[%clk 0:00:39]}  Rae8 {[%clk 0:02:02]} 21. Bxf6 {[%clk 0:00:31]}  Bxf6 {[%clk 0:01:58]} 22. g4 {[%clk 0:00:26]}  Qg6 {[%clk 0:01:49]} 23. Ng1 {[%clk 0:00:23]}  Bg7 {[%clk 0:01:47]} 24. c4 {[%clk 0:00:17]}  Rd8 {[%clk 0:01:42]} 25. cxd5 {[%clk 0:00:16]}  cxd5 {[%clk 0:01:41]} 26. Rc1 {[%clk 0:00:11]}  f5 {[%clk 0:01:38]} 27. Rc5 {[%clk 0:00:04]}  Qe6 {[%clk 0:01:28]} 28. Qc2 {[%clk 0:00:03]}  fxg4 {[%clk 0:01:23]} 29. Rd1 {[%clk 0:00:03]}  Rf7 {[%clk 0:01:20]} 30. Rc6 {[%clk 0:00:03]}  Qf5 {[%clk 0:01:17]} 31. Rc5 {[%clk 0:00:02]}  h3+ {[%clk 0:01:13]} 32. Kf1 {[%clk 0:00:02]}  g3 {[%clk 0:01:12]} 0-1


[Site "https://www.chess.com"]

[Event "Titled Tuesday Blitz April 25 Early 2023"]
[White "Bas Mas, Jose Joaquin"]
[Black "Aradhya, Garg"]
[WhiteFideId "22219064"]
[BlackFideId "25006746"]
[WhiteElo "2233"]
[BlackElo "2263"]
[Result "0-1"]
[Round "02"]
[TimeControl "180+2"]
[Date "2023.04.25"]
[WhiteClock "0:01:44"]
[BlackClock "0:01:27"]

1. e4 {[%clk 0:03:00]}  e5 {[%clk 0:03:00]} 2. Bc4 {[%clk 0:02:58]}  Nf6 {[%clk 0:02:59]} 3. d3 {[%clk 0:02:57]}  c6 {[%clk 0:02:59]} 4. Nf3 {[%clk 0:02:57]}  d5 {[%clk 0:02:59]} 5. Bb3 {[%clk 0:02:57]}  a5 {[%clk 0:03:00]} 6. a3 {[%clk 0:02:53]}  Bd6 {[%clk 0:02:55]} 7. Nc3 {[%clk 0:02:50]}  Be6 {[%clk 0:02:52]} 8. Bg5 {[%clk 0:02:48]}  d4 {[%clk 0:02:51]} 9. Ne2 {[%clk 0:02:44]}  Bxb3 {[%clk 0:02:51]} 10. cxb3 {[%clk 0:02:45]}  h6 {[%clk 0:02:50]} 11. Bxf6 {[%clk 0:02:40]}  Qxf6 {[%clk 0:02:51]} 12. O-O {[%clk 0:02:40]}  Nd7 {[%clk 0:02:43]} 13. Nd2 {[%clk 0:02:39]}  O-O {[%clk 0:01:50]} 14. Ng3 {[%clk 0:02:19]}  g6 {[%clk 0:01:39]} 15. Nc4 {[%clk 0:02:17]}  Bc7 {[%clk 0:01:38]} 16. Qg4 {[%clk 0:02:14]}  Nc5 {[%clk 0:01:38]} 17. Nh5 {[%clk 0:02:03]}  Qe6 {[%clk 0:01:37]} 18. Qxe6 {[%clk 0:02:01]}  fxe6 {[%clk 0:01:35]} 19. Ng3 {[%clk 0:01:59]}  Nxd3 {[%clk 0:01:36]} 20. Rad1 {[%clk 0:01:52]}  Nf4 {[%clk 0:01:30]} 21. Rd2 {[%clk 0:01:44]}  b5 {[%clk 0:01:27]} 0-1


[Site "https://www.chess.com"]

[Event "Titled Tuesday Blitz April 25 Early 2023"]
[White "Rottenwohrer Suarez, Juan"]
[Black "Arifarsky"]
[WhiteFideId "32068182"]
[WhiteElo "2174"]
[BlackElo "2730"]
[Result "1/2-1/2"]
[Round "02"]
[TimeControl "180+2"]
[Date "2023.04.25"]
[WhiteClock "0:00:04"]
[BlackClock "0:00:07"]

1. c4 {[%clk 0:03:00]}  Nf6 {[%clk 0:02:56]} 2. d4 {[%clk 0:02:57]}  e6 {[%clk 0:02:52]} 3. Nc3 {[%clk 0:02:49]}  d5 {[%clk 0:02:48]} 4. cxd5 {[%clk 0:02:45]}  exd5 {[%clk 0:02:47]} 5. Bg5 {[%clk 0:02:46]}  c6 {[%clk 0:02:48]} 6. Qc2 {[%clk 0:02:45]}  Be7 {[%clk 0:02:47]} 7. e3 {[%clk 0:02:45]}  O-O {[%clk 0:02:47]} 8. Bd3 {[%clk 0:02:45]}  Nbd7 {[%clk 0:02:48]} 9. Nge2 {[%clk 0:02:45]}  h6 {[%clk 0:02:48]} 10. Bh4 {[%clk 0:02:45]}  Re8 {[%clk 0:02:48]} 11. O-O {[%clk 0:02:45]}  Ne4 {[%clk 0:02:43]} 12. Bxe7 {[%clk 0:02:44]}  Qxe7 {[%clk 0:02:42]} 13. Bxe4 {[%clk 0:02:43]}  dxe4 {[%clk 0:02:42]} 14. d5 {[%clk 0:02:43]}  Nf6 {[%clk 0:02:28]} 15. Rad1 {[%clk 0:02:10]}  Bg4 {[%clk 0:02:21]} 16. h3 {[%clk 0:02:00]}  Bh5 {[%clk 0:02:17]} 17. dxc6 {[%clk 0:01:58]}  bxc6 {[%clk 0:02:16]} 18. Rd4 {[%clk 0:01:56]}  Qe5 {[%clk 0:02:05]} 19. Nf4 {[%clk 0:01:47]}  Bg6 {[%clk 0:01:14]} 20. Nxg6 {[%clk 0:01:45]}  fxg6 {[%clk 0:01:15]} 21. Rfd1 {[%clk 0:01:38]}  g5 {[%clk 0:01:11]} 22. g3 {[%clk 0:01:02]}  Qf5 {[%clk 0:01:05]} 23. Kh2 {[%clk 0:00:55]}  Kh8 {[%clk 0:00:45]} 24. R1d2 {[%clk 0:00:54]}  Re7 {[%clk 0:00:39]} 25. Na4 {[%clk 0:00:51]}  Nd7 {[%clk 0:00:35]} 26. Qxc6 {[%clk 0:00:45]}  Rd8 {[%clk 0:00:14]} 27. Nc5 {[%clk 0:00:45]}  Ne5 {[%clk 0:00:12]} 28. Rxd8+ {[%clk 0:00:45]}  Kh7 {[%clk 0:00:13]} 29. Qc8 {[%clk 0:00:39]}  Nf3+ {[%clk 0:00:12]} 30. Kg2 {[%clk 0:00:33]}  Qxc8 {[%clk 0:00:12]} 31. Rxc8 {[%clk 0:00:31]}  Nxd2 {[%clk 0:00:13]} 32. Rc6 {[%clk 0:00:22]}  Re5 {[%clk 0:00:11]} 33. b4 {[%clk 0:00:19]}  Nc4 {[%clk 0:00:05]} 34. Re6 {[%clk 0:00:16]}  Rxe6 {[%clk 0:00:03]} 35. Nxe6 {[%clk 0:00:17]}  g6 {[%clk 0:00:04]} 36. Nc5 {[%clk 0:00:18]}  Nd6 {[%clk 0:00:03]} 37. f3 {[%clk 0:00:06]}  exf3+ {[%clk 0:00:04]} 38. Kxf3 {[%clk 0:00:06]}  Kg7 {[%clk 0:00:05]} 39. Ke2 {[%clk 0:00:04]}  Kf6 {[%clk 0:00:05]} 40. Kd3 {[%clk 0:00:04]}  Ke5 {[%clk 0:00:05]} 41. a4 {[%clk 0:00:03]}  h5 {[%clk 0:00:05]} 42. b5 {[%clk 0:00:03]}  g4 {[%clk 0:00:06]} 43. hxg4 {[%clk 0:00:02]}  hxg4 {[%clk 0:00:07]} 44. Nd7+ {[%clk 0:00:02]}  Ke6 {[%clk 0:00:06]} 45. Nc5+ {[%clk 0:00:03]}  Kd5 {[%clk 0:00:06]} 46. Nd7 {[%clk 0:00:03]}  Ne4 {[%clk 0:00:05]} 47. a5 {[%clk 0:00:01]}  Nxg3 {[%clk 0:00:04]} 48. b6 {[%clk 0:00:01]}  Kc6 {[%clk 0:00:04]} 49. bxa7 {[%clk 0:00:01]}  Kb7 {[%clk 0:00:04]} 50. Ne5 {[%clk 0:00:01]}  Kxa7 {[%clk 0:00:04]} 51. Nxg4 {[%clk 0:00:02]}  Nf5 {[%clk 0:00:04]} 52. Ne5 {[%clk 0:00:02]}  g5 {[%clk 0:00:04]} 53. Ke4 {[%clk 0:00:02]}  Ne7 {[%clk 0:00:05]} 54. Kf3 {[%clk 0:00:03]}  Ka6 {[%clk 0:00:05]} 55. Kg4 {[%clk 0:00:03]}  Kxa5 {[%clk 0:00:05]} 56. Kxg5 {[%clk 0:00:04]}  Kb5 {[%clk 0:00:06]} 57. Kf6 {[%clk 0:00:04]}  Nd5+ {[%clk 0:00:07]} 58. Kf5 {[%clk 0:00:04]}  Nxe3+ {[%clk 0:00:07]} 1/2-1/2


[Site "https://www.chess.com"]

[Event "Titled Tuesday Blitz April 25 Early 2023"]
[White "Tarasova, Viktoriya"]
[Black "Borgaonkar Akshay"]
[WhiteFideId "4175840"]
[BlackFideId "25639110"]
[WhiteElo "2182"]
[BlackElo "2063"]
[Result "0-1"]
[Round "02"]
[TimeControl "180+2"]
[Date "2023.04.25"]
[WhiteClock "0:00:01"]
[BlackClock "0:00:04"]

1. d4 {[%clk 0:02:56]}  g6 {[%clk 0:02:58]} 2. e4 {[%clk 0:02:55]}  Bg7 {[%clk 0:02:56]} 3. Nc3 {[%clk 0:02:54]}  d6 {[%clk 0:02:53]} 4. f4 {[%clk 0:02:54]}  a6 {[%clk 0:02:53]} 5. Nf3 {[%clk 0:02:49]}  b5 {[%clk 0:02:53]} 6. a3 {[%clk 0:02:49]}  Bb7 {[%clk 0:02:52]} 7. Bd3 {[%clk 0:02:48]}  Nd7 {[%clk 0:02:50]} 8. O-O {[%clk 0:02:38]}  c5 {[%clk 0:02:50]} 9. Be3 {[%clk 0:02:23]}  c4 {[%clk 0:02:48]} 10. Be2 {[%clk 0:02:23]}  Ngf6 {[%clk 0:02:48]} 11. e5 {[%clk 0:02:20]}  Nd5 {[%clk 0:02:44]} 12. Nxd5 {[%clk 0:02:19]}  Bxd5 {[%clk 0:02:44]} 13. Ng5 {[%clk 0:01:58]}  h6 {[%clk 0:02:41]} 14. Bf3 {[%clk 0:01:55]}  Nb6 {[%clk 0:02:19]} 15. Ne4 {[%clk 0:01:48]}  Bxe4 {[%clk 0:02:08]} 16. Bxe4 {[%clk 0:01:48]}  d5 {[%clk 0:02:09]} 17. Bf3 {[%clk 0:01:48]}  e6 {[%clk 0:02:09]} 18. g4 {[%clk 0:01:43]}  Qd7 {[%clk 0:01:35]} 19. Qd2 {[%clk 0:01:31]}  Rc8 {[%clk 0:01:28]} 20. c3 {[%clk 0:01:26]}  a5 {[%clk 0:01:19]} 21. Kh1 {[%clk 0:01:23]}  a4 {[%clk 0:01:19]} 22. Qg2 {[%clk 0:01:18]}  Kd8 {[%clk 0:01:15]} 23. f5 {[%clk 0:01:00]}  g5 {[%clk 0:01:10]} 24. Be2 {[%clk 0:00:49]}  Kc7 {[%clk 0:01:07]} 25. Rf2 {[%clk 0:00:49]}  Rhf8 {[%clk 0:01:01]} 26. Raf1 {[%clk 0:00:49]}  Kb7 {[%clk 0:00:58]} 27. f6 {[%clk 0:00:47]}  Bh8 {[%clk 0:00:57]} 28. Qh3 {[%clk 0:00:48]}  Rg8 {[%clk 0:00:52]} 29. Qxh6 {[%clk 0:00:47]}  Rg6 {[%clk 0:00:53]} 30. Qh5 {[%clk 0:00:44]}  Rcg8 {[%clk 0:00:38]} 31. Bd1 {[%clk 0:00:44]}  Rf8 {[%clk 0:00:18]} 32. Bc2 {[%clk 0:00:42]}  Rgg8 {[%clk 0:00:18]} 33. Bxg5 {[%clk 0:00:41]}  Rc8 {[%clk 0:00:08]} 34. Be3 {[%clk 0:00:40]}  Qc6 {[%clk 0:00:02]} 35. g5 {[%clk 0:00:37]}  Rc7 {[%clk 0:00:01]} 36. Qf3 {[%clk 0:00:36]}  Nd7 {[%clk 0:00:01]} 37. h4 {[%clk 0:00:34]}  Nf8 {[%clk 0:00:01]} 38. h5 {[%clk 0:00:31]}  Ka6 {[%clk 0:00:02]} 39. Rg2 {[%clk 0:00:31]}  Nd7 {[%clk 0:00:01]} 40. Kg1 {[%clk 0:00:27]}  Rf8 {[%clk 0:00:01]} 41. Kf2 {[%clk 0:00:27]}  Re8 {[%clk 0:00:02]} 42. Rfg1 {[%clk 0:00:22]}  Rcc8 {[%clk 0:00:02]} 43. g6 {[%clk 0:00:21]}  fxg6 {[%clk 0:00:03]} 44. hxg6 {[%clk 0:00:22]}  Nxf6 {[%clk 0:00:03]} 45. exf6 {[%clk 0:00:22]}  Bxf6 {[%clk 0:00:03]} 46. g7 {[%clk 0:00:12]}  Bh4+ {[%clk 0:00:03]} 47. Ke2 {[%clk 0:00:12]}  Rg8 {[%clk 0:00:04]} 48. Bh7 {[%clk 0:00:11]}  Qe8 {[%clk 0:00:02]} 49. Bxg8 {[%clk 0:00:10]}  Qxg8 {[%clk 0:00:02]} 50. Qg4 {[%clk 0:00:10]}  Qh7 {[%clk 0:00:02]} 51. Kd2 {[%clk 0:00:08]}  Qd3+ {[%clk 0:00:03]} 52. Kc1 {[%clk 0:00:07]}  Qxe3+ {[%clk 0:00:03]} 53. Kb1 {[%clk 0:00:08]}  Qd3+ {[%clk 0:00:04]} 54. Ka2 {[%clk 0:00:08]}  b4 {[%clk 0:00:05]} 55. Qd1 {[%clk 0:00:04]}  bxa3 {[%clk 0:00:03]} 56. Qxa4+ {[%clk 0:00:02]}  Kb6 {[%clk 0:00:04]} 57. Qb4+ {[%clk 0:00:02]}  Kc6 {[%clk 0:00:04]} 58. Qa4+ {[%clk 0:00:01]}  Kb6 {[%clk 0:00:04]} 59. Qb4+ {[%clk 0:00:01]}  Kc7 {[%clk 0:00:04]} 0-1


[Site "https://www.chess.com"]

[Event "Titled Tuesday Blitz April 25 Early 2023"]
[White "Kim, Sergey"]
[Black "Karthik Sai Ch"]
[WhiteFideId "13700570"]
[BlackFideId "46649484"]
[WhiteElo "2624"]
[BlackElo "2003"]
[Result "1-0"]
[Round "02"]
[TimeControl "180+2"]
[Date "2023.04.25"]
[WhiteClock "0:00:06"]
[BlackClock "0:00:03"]

1. d4 {[%clk 0:03:00]}  d5 {[%clk 0:02:58]} 2. c4 {[%clk 0:03:01]}  c6 {[%clk 0:02:58]} 3. Nf3 {[%clk 0:03:00]}  Nf6 {[%clk 0:02:58]} 4. Qc2 {[%clk 0:03:00]}  dxc4 {[%clk 0:02:58]} 5. Qxc4 {[%clk 0:03:00]}  Bf5 {[%clk 0:02:58]} 6. e3 {[%clk 0:02:58]}  e6 {[%clk 0:02:57]} 7. Bd3 {[%clk 0:02:58]}  Bg6 {[%clk 0:02:57]} 8. O-O {[%clk 0:02:57]}  Nbd7 {[%clk 0:02:56]} 9. Nbd2 {[%clk 0:02:57]}  Nb6 {[%clk 0:02:53]} 10. Qc2 {[%clk 0:02:56]}  Nbd5 {[%clk 0:02:50]} 11. a3 {[%clk 0:02:56]}  Be7 {[%clk 0:02:48]} 12. b4 {[%clk 0:02:55]}  O-O {[%clk 0:02:47]} 13. Bb2 {[%clk 0:02:55]}  a5 {[%clk 0:02:42]} 14. Bxg6 {[%clk 0:02:50]}  hxg6 {[%clk 0:02:40]} 15. bxa5 {[%clk 0:02:49]}  Qxa5 {[%clk 0:02:39]} 16. Nc4 {[%clk 0:02:44]}  Qa4 {[%clk 0:02:36]} 17. Qe2 {[%clk 0:02:40]}  Ne4 {[%clk 0:02:29]} 18. Rfc1 {[%clk 0:02:38]}  Qa6 {[%clk 0:02:26]} 19. Qc2 {[%clk 0:02:34]}  f5 {[%clk 0:02:24]} 20. Nfe5 {[%clk 0:02:29]}  Kh7 {[%clk 0:02:08]} 21. f3 {[%clk 0:02:26]}  Nd6 {[%clk 0:02:06]} 22. Qf2 {[%clk 0:02:20]}  Nxc4 {[%clk 0:01:59]} 23. Nxc4 {[%clk 0:02:14]}  Qb5 {[%clk 0:01:59]} 24. Rab1 {[%clk 0:02:12]}  Qa6 {[%clk 0:01:56]} 25. Ra1 {[%clk 0:02:10]}  Qb5 {[%clk 0:01:56]} 26. Ne5 {[%clk 0:02:08]}  Bf6 {[%clk 0:01:44]} 27. Nd7 {[%clk 0:02:05]}  Rfd8 {[%clk 0:01:43]} 28. Nc5 {[%clk 0:02:03]}  b6 {[%clk 0:01:32]} 29. Nxe6 {[%clk 0:02:02]}  Re8 {[%clk 0:01:32]} 30. Nf4 {[%clk 0:01:53]}  Rxe3 {[%clk 0:01:30]} 31. Nxd5 {[%clk 0:01:50]}  Re2 {[%clk 0:01:28]} 32. Nxf6+ {[%clk 0:01:40]}  gxf6 {[%clk 0:01:26]} 33. Qh4+ {[%clk 0:01:02]}  Kg7 {[%clk 0:01:25]} 34. Bc3 {[%clk 0:01:02]}  Qd3 {[%clk 0:01:23]} 35. d5 {[%clk 0:00:57]}  Qe3+ {[%clk 0:01:16]} 36. Kh1 {[%clk 0:00:57]}  Rf8 {[%clk 0:01:10]} 37. dxc6 {[%clk 0:00:53]}  g5 {[%clk 0:01:09]} 38. Qd4 {[%clk 0:00:53]}  f4 {[%clk 0:00:59]} 39. c7 {[%clk 0:00:49]}  Qe6 {[%clk 0:00:57]} 40. Bb4 {[%clk 0:00:43]}  Rh8 {[%clk 0:00:54]} 41. Re1 {[%clk 0:00:34]}  Rxg2 {[%clk 0:00:46]} 42. Kxg2 {[%clk 0:00:32]}  Qh3+ {[%clk 0:00:45]} 43. Kg1 {[%clk 0:00:30]}  Qxh2+ {[%clk 0:00:43]} 44. Kf1 {[%clk 0:00:30]}  Qh1+ {[%clk 0:00:39]} 45. Ke2 {[%clk 0:00:22]}  Qg2+ {[%clk 0:00:37]} 46. Kd1 {[%clk 0:00:18]}  Qxf3+ {[%clk 0:00:36]} 47. Kc1 {[%clk 0:00:16]}  Qc6+ {[%clk 0:00:35]} 48. Qc3 {[%clk 0:00:16]}  Qxc3+ {[%clk 0:00:33]} 49. Bxc3 {[%clk 0:00:16]}  Rc8 {[%clk 0:00:34]} 50. Re7+ {[%clk 0:00:15]}  Kg6 {[%clk 0:00:33]} 51. Kb2 {[%clk 0:00:14]}  f3 {[%clk 0:00:33]} 52. Rd1 {[%clk 0:00:14]}  g4 {[%clk 0:00:31]} 53. Rd8 {[%clk 0:00:13]}  f2 {[%clk 0:00:28]} 54. Rd1 {[%clk 0:00:12]}  g3 {[%clk 0:00:27]} 55. Re6 {[%clk 0:00:12]}  Rxc7 {[%clk 0:00:22]} 56. Rxf6+ {[%clk 0:00:12]}  Kg5 {[%clk 0:00:22]} 57. Rf8 {[%clk 0:00:11]}  Kg4 {[%clk 0:00:20]} 58. Rd4+ {[%clk 0:00:10]}  Kh3 {[%clk 0:00:19]} 59. Rd3 {[%clk 0:00:09]}  Kh2 {[%clk 0:00:14]} 60. Rdf3 {[%clk 0:00:05]}  Rc5 {[%clk 0:00:11]} 61. Rxf2+ {[%clk 0:00:05]}  gxf2 {[%clk 0:00:11]} 62. Rxf2+ {[%clk 0:00:06]}  Kg3 {[%clk 0:00:12]} 63. Rf6 {[%clk 0:00:06]}  Kg4 {[%clk 0:00:12]} 64. Rxb6 {[%clk 0:00:06]}  Kf4 {[%clk 0:00:12]} 65. Bb4 {[%clk 0:00:07]}  Rc8 {[%clk 0:00:12]} 66. Kb3 {[%clk 0:00:07]}  Ke4 {[%clk 0:00:12]} 67. Ka4 {[%clk 0:00:07]}  Kd5 {[%clk 0:00:13]} 68. Rb5+ {[%clk 0:00:08]}  Kc4 {[%clk 0:00:12]} 69. Ra5 {[%clk 0:00:08]}  Rb8 {[%clk 0:00:11]} 70. Ra7 {[%clk 0:00:09]}  Kd5 {[%clk 0:00:11]} 71. Rc7 {[%clk 0:00:09]}  Ra8+ {[%clk 0:00:11]} 72. Kb3 {[%clk 0:00:09]}  Rb8 {[%clk 0:00:11]} 73. Rc5+ {[%clk 0:00:10]}  Kd6 {[%clk 0:00:11]} 74. Rb5+ {[%clk 0:00:09]}  Kc7 {[%clk 0:00:12]} 75. Ra5 {[%clk 0:00:09]}  Kc6 {[%clk 0:00:11]} 76. Ka4 {[%clk 0:00:09]}  Rb7 {[%clk 0:00:10]} 77. Ra6+ {[%clk 0:00:09]}  Kc7 {[%clk 0:00:11]} 78. Ka5 {[%clk 0:00:09]}  Kb8 {[%clk 0:00:09]} 79. Bc5 {[%clk 0:00:09]}  Rb1 {[%clk 0:00:08]} 80. Bb4 {[%clk 0:00:07]}  Rh1 {[%clk 0:00:07]} 81. Re6 {[%clk 0:00:07]}  Rh7 {[%clk 0:00:06]} 82. Kb6 {[%clk 0:00:07]}  Rb7+ {[%clk 0:00:06]} 83. Kc6 {[%clk 0:00:07]}  Rc7+ {[%clk 0:00:06]} 84. Kd6 {[%clk 0:00:07]}  Rc1 {[%clk 0:00:06]} 85. Bc5 {[%clk 0:00:07]}  Kb7 {[%clk 0:00:06]} 86. Re7+ {[%clk 0:00:07]}  Ka6 {[%clk 0:00:07]} 87. Kc6 {[%clk 0:00:07]}  Ka5 {[%clk 0:00:03]} 88. Ra7# {[%clk 0:00:06]} 1-0


[Site "https://www.chess.com"]

[Event "Titled Tuesday Blitz April 25 Early 2023"]
[White "Janaszak, Dawid"]
[Black "Stalri"]
[WhiteFideId "1119206"]
[WhiteElo "2220"]
[BlackElo "2334"]
[Result "1/2-1/2"]
[Round "02"]
[TimeControl "180+2"]
[Date "2023.04.25"]
[WhiteClock "0:00:21"]
[BlackClock "0:01:35"]

1. e4 {[%clk 0:03:00]}  c5 {[%clk 0:02:59]} 2. Nc3 {[%clk 0:03:00]}  e6 {[%clk 0:02:58]} 3. Nge2 {[%clk 0:02:58]}  Nc6 {[%clk 0:02:57]} 4. g3 {[%clk 0:02:58]}  d5 {[%clk 0:02:57]} 5. exd5 {[%clk 0:02:57]}  exd5 {[%clk 0:02:58]} 6. d4 {[%clk 0:02:58]}  Nf6 {[%clk 0:02:58]} 7. Bg2 {[%clk 0:02:58]}  Be7 {[%clk 0:02:58]} 8. O-O {[%clk 0:02:58]}  O-O {[%clk 0:02:59]} 9. dxc5 {[%clk 0:02:57]}  Bxc5 {[%clk 0:02:59]} 10. Bg5 {[%clk 0:02:57]}  d4 {[%clk 0:02:56]} 11. Nd5 {[%clk 0:02:53]}  Be7 {[%clk 0:02:46]} 12. Nxe7+ {[%clk 0:02:53]}  Qxe7 {[%clk 0:02:45]} 13. Nxd4 {[%clk 0:02:50]}  Nxd4 {[%clk 0:02:43]} 14. Qxd4 {[%clk 0:02:49]}  Be6 {[%clk 0:02:43]} 15. Bxf6 {[%clk 0:02:43]}  Qxf6 {[%clk 0:02:43]} 16. Qxf6 {[%clk 0:02:42]}  gxf6 {[%clk 0:02:44]} 17. Rae1 {[%clk 0:02:34]}  Rfd8 {[%clk 0:02:43]} 18. Rd1 {[%clk 0:02:30]}  Rac8 {[%clk 0:02:40]} 19. Be4 {[%clk 0:02:00]}  b5 {[%clk 0:02:36]} 20. a3 {[%clk 0:01:56]}  a5 {[%clk 0:02:35]} 21. Kg2 {[%clk 0:01:36]}  Kg7 {[%clk 0:02:35]} 22. Kf3 {[%clk 0:01:30]}  h5 {[%clk 0:02:33]} 23. Rxd8 {[%clk 0:01:24]}  Rxd8 {[%clk 0:02:26]} 24. Ke3 {[%clk 0:01:21]}  f5 {[%clk 0:02:20]} 25. Bd3 {[%clk 0:01:20]}  b4 {[%clk 0:02:19]} 26. axb4 {[%clk 0:01:20]}  axb4 {[%clk 0:02:20]} 27. Ra1 {[%clk 0:01:17]}  Bd5 {[%clk 0:02:19]} 28. Bxf5 {[%clk 0:01:13]}  Re8+ {[%clk 0:02:19]} 29. Kd4 {[%clk 0:01:11]}  Bf3 {[%clk 0:02:17]} 30. Bd3 {[%clk 0:01:05]}  h4 {[%clk 0:02:16]} 31. Kc4 {[%clk 0:00:59]}  Rb8 {[%clk 0:02:16]} 32. gxh4 {[%clk 0:00:57]}  b3 {[%clk 0:02:13]} 33. cxb3 {[%clk 0:00:53]}  Rh8 {[%clk 0:02:12]} 34. b4 {[%clk 0:00:49]}  Rxh4+ {[%clk 0:02:12]} 35. Kc3 {[%clk 0:00:50]}  Rxh2 {[%clk 0:02:12]} 36. Kd4 {[%clk 0:00:40]}  Rxf2 {[%clk 0:02:07]} 37. Rf1 {[%clk 0:00:29]}  Rxf1 {[%clk 0:01:42]} 38. Bxf1 {[%clk 0:00:30]}  Kf6 {[%clk 0:01:43]} 39. b5 {[%clk 0:00:29]}  Ke6 {[%clk 0:01:42]} 40. Bc4+ {[%clk 0:00:28]}  Ke7 {[%clk 0:01:41]} 41. b6 {[%clk 0:00:27]}  f5 {[%clk 0:01:38]} 42. Ba6 {[%clk 0:00:20]}  Kd6 {[%clk 0:01:38]} 43. Bc8 {[%clk 0:00:18]}  Be4 {[%clk 0:01:35]} 44. b7 {[%clk 0:00:13]}  Kc7 {[%clk 0:01:35]} 45. b4 {[%clk 0:00:11]}  Kb8 {[%clk 0:01:34]} 46. Ke5 {[%clk 0:00:11]}  Bd3 {[%clk 0:01:33]} 47. Kd6 {[%clk 0:00:09]}  Be4 {[%clk 0:01:34]} 48. Ke5 {[%clk 0:00:09]}  Bd3 {[%clk 0:01:34]} 49. Bxf5 {[%clk 0:00:09]}  Bxf5 {[%clk 0:01:28]} 50. Kxf5 {[%clk 0:00:10]}  Kxb7 {[%clk 0:01:28]} 51. Ke4 {[%clk 0:00:10]}  Kb6 {[%clk 0:01:29]} 52. Kd4 {[%clk 0:00:11]}  Kb5 {[%clk 0:01:30]} 53. Kc3 {[%clk 0:00:12]}  Kb6 {[%clk 0:01:30]} 54. Kb3 {[%clk 0:00:13]}  Kb5 {[%clk 0:01:31]} 55. Kc3 {[%clk 0:00:12]}  Kb6 {[%clk 0:01:31]} 56. Kc4 {[%clk 0:00:13]}  Kc6 {[%clk 0:01:31]} 57. b5+ {[%clk 0:00:14]}  Kb6 {[%clk 0:01:32]} 58. Kb4 {[%clk 0:00:15]}  Kb7 {[%clk 0:01:32]} 59. Ka5 {[%clk 0:00:16]}  Ka7 {[%clk 0:01:33]} 60. b6+ {[%clk 0:00:16]}  Kb7 {[%clk 0:01:33]} 61. Kb5 {[%clk 0:00:17]}  Kb8 {[%clk 0:01:34]} 62. Kc5 {[%clk 0:00:18]}  Kb7 {[%clk 0:01:34]} 63. Kb5 {[%clk 0:00:18]}  Kb8 {[%clk 0:01:34]} 64. Kc6 {[%clk 0:00:19]}  Kc8 {[%clk 0:01:34]} 65. Kc5 {[%clk 0:00:20]}  Kb7 {[%clk 0:01:35]} 66. Kb5 {[%clk 0:00:21]} 1/2-1/2


[Site "https://www.chess.com"]

[Event "Titled Tuesday Blitz April 25 Early 2023"]
[White "Kohler, Aran"]
[Black "Ferenc83"]
[WhiteFideId "1002856"]
[WhiteElo "2306"]
[BlackElo "2567"]
[Result "0-1"]
[Round "02"]
[TimeControl "180+2"]
[Date "2023.04.25"]
[WhiteClock "0:01:27"]
[BlackClock "0:01:17"]

1. Nh3 {[%clk 0:03:00]}  Nf6 {[%clk 0:02:58]} 2. f3 {[%clk 0:03:00]}  e5 {[%clk 0:02:57]} 3. Nf2 {[%clk 0:03:00]}  d5 {[%clk 0:02:57]} 4. e3 {[%clk 0:02:59]}  c5 {[%clk 0:02:56]} 5. g3 {[%clk 0:03:00]}  Nc6 {[%clk 0:02:56]} 6. d3 {[%clk 0:03:00]}  h5 {[%clk 0:02:55]} 7. Bg2 {[%clk 0:02:59]}  h4 {[%clk 0:02:54]} 8. g4 {[%clk 0:03:00]}  Bd6 {[%clk 0:02:52]} 9. Qe2 {[%clk 0:02:53]}  Qc7 {[%clk 0:02:51]} 10. Nd2 {[%clk 0:02:54]}  Be6 {[%clk 0:02:50]} 11. h3 {[%clk 0:02:54]}  O-O-O {[%clk 0:02:49]} 12. c3 {[%clk 0:02:54]}  Kb8 {[%clk 0:02:48]} 13. b3 {[%clk 0:02:53]}  d4 {[%clk 0:02:46]} 14. cxd4 {[%clk 0:02:50]}  cxd4 {[%clk 0:02:42]} 15. e4 {[%clk 0:02:50]}  Nb4 {[%clk 0:02:37]} 16. O-O {[%clk 0:02:48]}  Nc2 {[%clk 0:02:36]} 17. Rb1 {[%clk 0:02:48]}  Ne3 {[%clk 0:02:35]} 18. Re1 {[%clk 0:02:48]}  Rc8 {[%clk 0:02:26]} 19. Nc4 {[%clk 0:02:47]}  Nxg2 {[%clk 0:02:08]} 20. Kxg2 {[%clk 0:02:46]}  Bb4 {[%clk 0:02:05]} 21. Bd2 {[%clk 0:02:41]}  Bxd2 {[%clk 0:02:05]} 22. Nxd2 {[%clk 0:02:25]}  Qc2 {[%clk 0:02:00]} 23. Nc4 {[%clk 0:02:20]}  Qxe2 {[%clk 0:01:58]} 24. Rxe2 {[%clk 0:02:20]}  Nd7 {[%clk 0:01:57]} 25. a4 {[%clk 0:02:04]}  b6 {[%clk 0:01:51]} 26. f4 {[%clk 0:02:01]}  exf4 {[%clk 0:01:50]} 27. Kf3 {[%clk 0:02:02]}  g5 {[%clk 0:01:49]} 28. e5 {[%clk 0:01:58]}  Bxc4 {[%clk 0:01:47]} 29. bxc4 {[%clk 0:01:57]}  Rhe8 {[%clk 0:01:47]} 30. Rbe1 {[%clk 0:01:57]}  Rc5 {[%clk 0:01:45]} 31. e6 {[%clk 0:01:56]}  fxe6 {[%clk 0:01:43]} 32. Rxe6 {[%clk 0:01:56]}  Ne5+ {[%clk 0:01:41]} 33. R1xe5 {[%clk 0:01:47]}  Rxe5 {[%clk 0:01:40]} 34. Rxe8+ {[%clk 0:01:44]}  Rxe8 {[%clk 0:01:40]} 35. Ne4 {[%clk 0:01:44]}  Re5 {[%clk 0:01:37]} 36. Nd6 {[%clk 0:01:40]}  Re3+ {[%clk 0:01:33]} 37. Kg2 {[%clk 0:01:33]}  Rg3+ {[%clk 0:01:32]} 38. Kf2 {[%clk 0:01:29]}  Rxh3 {[%clk 0:01:32]} 39. Ne4 {[%clk 0:01:28]}  Rxd3 {[%clk 0:01:27]} 40. Nxg5 {[%clk 0:01:28]}  Rg3 {[%clk 0:01:23]} 41. Ne6 {[%clk 0:01:28]}  h3 {[%clk 0:01:18]} 42. Nxf4 {[%clk 0:01:27]}  h2 {[%clk 0:01:17]} 0-1


[Site "https://www.chess.com"]